[Event "20th Heraklion IT Open 2017"]
[Site "Heraklion"]
[Date "2017.04.17"]
[Round "1"]
[White "Martorelli, Antonio"]
[Black "Koumis, Filippos"]
[Result "1-0"]
[ECO "B16"]
[WhiteElo "2220"]
[BlackElo "1663"]
[Annotator "NA"]
[PlyCount "45"]
[EventDate "2017.??.??"]
[EventType "swiss"]
[EventCountry "GRE"]
[SourceTitle "playchess.com"]
[Source "ChessBase"]
[SourceQuality "1"]
[TimeControl "40/5400+30:1800+30"]

1. e4 {[%emt 0:01:27]} c6 {[%emt 0:04:27]} 2. d4 {[%emt 0:00:25]} d5 {[%emt 0:00:15]} 3. Nc3 {[%emt 0:00:16]} dxe4 {[%emt 0:00:19]} 4. Nxe4 {[%emt 0:00:07]} Nf6 {[%emt 0:00:37]} 5. Nxf6+ {[%emt 0:00:09]} gxf6 {[%emt 0:00:17]} 6. Bc4 {[%emt 0:01:54]} Bf5 {[%emt 0:06:08]} 7. Nf3 {[%emt 0:00:06]} Nd7 {[%emt 0:01:16]} 8. O-O {[%emt 0:00:14]} Bg7 {[%emt 0:01:32]} 9. Nh4 {[%emt 0:00:39]} Bg6 {[%emt 0:01:13]} 10. Qg4 {[%emt 0:09:47]} Nb6 {[%emt 0:20:09]} 11. Bb3 {[%emt 0:02:02]} O-O {[%emt 0:03:22]} 12. Nxg6 {[%emt 0:06:19]} hxg6 {[%emt 0:00:09]} 13. Qxg6 {[%emt 0:00:51]} Qxd4 {[%emt 0:01:56]} 14. Bh6 {[%emt 0:01:45]} f5 {[%emt 0:00:16]} 15. Bxg7 {[%emt 0:03:25]} Qxg7 {[%emt 0:00:16]} 16. Qxf5 {[%emt 0:00:11]} e6 {[%emt 0:04:05]} 17. Qf4 {[%emt 0:01:17]} Qxb2 {[%emt 0:01:40]} 18. Rae1 {[%emt 0:00:22]} Nd7 {[%emt 0:08:50]} 19. Re3 {[%emt 0:02:51]} Qf6 {[%emt 0:00:27]} 20. Rg3+ {[%emt 0:04:27]} Kh8 {[%emt 0:00:39]} 21. Rh3+ {[%emt 0:00:32]} Kg7 {[%emt 0:00:26]} 22. Qg3+ {[%emt 0:01:02]} Qg6 {[%emt 0:00:09]} 23. Qd6 {[%emt 0:00:13]} 1-0

[Event "20th Heraklion IT Open 2017"]
[Site "Heraklion"]
[Date "2017.04.17"]
[Round "1"]
[White "Moshovakis, Aggelos"]
[Black "Galanakis, Nikolaos"]
[Result "1-0"]
[ECO "C00"]
[WhiteElo "2030"]
[BlackElo "1399"]
[Annotator "NA"]
[PlyCount "59"]
[EventDate "2017.??.??"]
[EventType "swiss"]
[EventCountry "GRE"]
[SourceTitle "playchess.com"]
[Source "ChessBase"]
[SourceQuality "1"]
[TimeControl "40/5400+30:1800+30"]

1. e4 {[%emt 0:00:00]} e6 {[%emt 0:00:29]} 2. d3 {[%emt 0:00:00]} d5 {[%emt 0:04:40]} 3. Nd2 {[%emt 0:00:00]} Nf6 {[%emt 0:02:34]} 4. Ngf3 {[%emt 0:00:15]} Be7 {[%emt 0:05:27]} 5. g3 {[%emt 0:00:06]} O-O {[%emt 0:05:05] C00: French: Unusual White 2nd moves} 6. Bg2 {[%emt 0:00:09]} Nbd7 {[%emt 0:07:40]} (6... c5 7. O-O Nc6 8. Re1 Qc7 9. Qe2 b5 10. e5 Nd7 11. Nf1 a5 12. h4 b4 13. N1h2 a4 14. Ng4 a3 15. b3 Ba6 16. Bf4 Rfc8 17. Qd2 Qd8 18. Bg5 Ra7 19. Qf4 Rac7 20. h5 Nd4 21. Bxe7 Qxe7 22. Nxd4 cxd4 {1-0 (40) Petrosian,T (2625)-Stern,R (2538) Berlin 2015}) 7. e5 {[%emt 0:02:20]} Ne8 {[%emt 0:00:16]} 8. d4 {[%emt 0:00:44]} c5 {[%emt 0:03:56]} 9. c3 {[%emt 0:00:09]} cxd4 {[%emt 0:05:29]} 10. cxd4 {[%emt 0:00:05]} Nb8 $146 {[%emt 0:12:22]} (10... b6 11. Bf1 Nc7 12. Bd3 Ba6 {½-½ (72) Petersen,F (2325)-Nilsson,N (2255) Copenhagen 1983}) 11. O-O {[%emt 0:00:30]} Nc6 {[%emt 0:00:08]} 12. Re1 {[%emt 0:00:43]} Bd7 {[%emt 0:01:19]} 13. Nf1 {[%emt 0:00:37]} Qb6 {[%emt 0:01:16]} 14. h4 {[%emt 0:01:09]} Rc8 {[%emt 0:02:20]} 15. Ne3 {[%emt 0:09:15]} Nc7 {[%emt 0:01:32]} 16. Ng4 {[%emt 0:02:42]} Bb4 {[%emt 0:10:51]} 17. Bh6 $2 {[%emt 0:26:17]} (17. Re3 $14 {stays ahead.}) 17... Bxe1 {[%emt 0:19:37]} 18. Bxg7 {[%emt 0:00:23]} Bxf2+ {[%emt 0:02:32]} 19. Kxf2 {[%emt 0:01:36]} Qxb2+ {[%emt 0:03:34]} 20. Kg1 {[%emt 0:00:03]} Kxg7 {[%emt 0:00:56]} 21. Rb1 {[%emt 0:00:18]} Qc3 {[%emt 0:01:42]} 22. Rb3 {[%emt 0:01:50]} Qc4 {[%emt 0:03:35]} 23. Qd2 $17 {[%emt 0:03:00]} f5 {[%emt 0:04:01]} 24. Qh6+ {[%emt 0:00:16]} Kf7 {[%emt 0:00:32]} 25. Qxh7+ {[%emt 0:02:43]} Ke8 {[%emt 0:00:19]} 26. Nf6+ {[%emt 0:00:11]} Rxf6 {[%emt 0:00:20]} 27. exf6 {[%emt 0:00:02]} Qc1+ {[%emt 0:00:44]} 28. Kh2 {[%emt 0:00:02]} Kd8 {[%emt 0:00:42]} 29. Ne5 {[%emt 0:00:32]} Nxe5 {[%emt 0:00:23]} 30. Qe7# {[%emt 0:00:06]} 1-0

[Event "20th Heraklion IT Open 2017"]
[Site "Heraklion"]
[Date "2017.04.17"]
[Round "1"]
[White "Hristodoulaki, Antonia"]
[Black "Koutsourakis, Ioannis"]
[Result "1-0"]
[ECO "D11"]
[WhiteElo "1994"]
[BlackElo "1543"]
[Annotator "NA RC"]
[PlyCount "93"]
[EventDate "2017.??.??"]
[EventType "swiss"]
[EventCountry "GRE"]
[SourceTitle "playchess.com"]
[Source "ChessBase"]
[SourceQuality "1"]
[TimeControl "40/5400+30:1800+30"]

{[%evp 30,92,22,32767,0,-68,32767,32767,11,32767,32767,6,16,32767,32767,-34,-35,-71,0,0,0,-22,0,-22,0,-33,32767,32767,32767,32767,32767,6,32,14,43,41,62,30,83,75,83,69,110,95,118,68,137,117,197,209,210,210,223,200,227,221,321,292,245,331,32767,241,350,376,461]} 1. d4 {[%emt 0:02:33]} d5 {[%emt 0:00:09]} 2. c4 {[%emt 0:00:06]} c6 {[%emt 0:00:05]} 3. e3 {[%emt 0:03:41]} Nf6 {[%emt 0:03:37]} 4. Nf3 {[%emt 0:01:27]} e6 {[%emt 0:06:08]} 5. Bd3 {[%emt 0:04:03]} Be7 {[%emt 0:03:40]} 6. Nc3 {[%emt 0:01:34]} dxc4 {[%emt 0:05:12]} 7. Bxc4 {[%emt 0:00:48]} b5 {[%emt 0:01:36]} 8. Bd3 {[%emt 0:09:29]} Bb7 {[%emt 0:02:18]} 9. O-O {[%emt 0:06:12]} O-O {[%emt 0:01:17]} 10. Qc2 {[%emt 0:06:03] D45: Semi-Slav: 5 e3} h6 {[%emt 0:06:50]} 11. Rd1 {[%emt 0:07:56]} a6 $146 {[%emt 0:05:26]} (11... Na6 12. a3 Nc7 13. Ne4 Nxe4 14. Bxe4 Rc8 15. b4 {0-1 (52) Van der Berg,A-Grondsma,H Alkmaar 1985}) 12. Ne5 {[%emt 0:08:33]} Nbd7 {[%emt 0:05:24]} 13. a3 {[%emt 0:06:32]} Rc8 {[%emt 0:07:51]} 14. Nxd7 {[%emt 0:18:31]} Qxd7 {[%emt 0:00:59]} 15. Qe2 {[%emt 0:05:25]} Rfd8 {[%emt 0:07:11]} 16. Bc2 {[%emt 0:05:05]} Qc7 {[%emt 0:02:08]} 17. e4 {[%emt 0:01:01]} (17. b4 $11) 17... e5 {[%emt 0:18:20]} 18. dxe5 {[%emt 0:00:34]} Rxd1+ {[%emt 0:00:14]} 19. Nxd1 {[%emt 0:00:41]} Qxe5 {[%emt 0:00:28]} 20. f4 {[%emt 0:01:26]} Bc5+ {[%emt 0:08:55]} 21. Kf1 {[%emt 0:03:42]} Qe7 {[%emt 0:03:22]} 22. Nf2 {[%emt 0:01:33]} Re8 {[%emt 0:02:32]} 23. Be3 {[%emt 0:02:01] [#]} Bxe3 {[%emt 0:00:51]} (23... Nd5 $1 $15 {[%mdl 512]} 24. exd5 (24. Bxc5 Qxc5 25. Bb3 Nxf4 $17) 24... Bxe3) 24. Qxe3 {[%emt 0:00:02]} c5 {[%emt 0:01:27]} 25. Re1 {[%emt 0:00:40]} c4 {[%emt 0:01:44]} 26. Qc3 {[%emt 0:01:31]} Qc7 {[%emt 0:02:10]} 27. g3 {[%emt 0:00:54]} Qc6 {[%emt 0:01:39]} 28. Qd2 {[%emt 0:01:02]} Qd7 {[%emt 0:02:09]} 29. Qxd7 {[%emt 0:00:42]} Nxd7 {[%emt 0:00:01]} 30. e5 {[%emt 0:00:37]} Nc5 {[%emt 0:00:37]} 31. Rd1 {[%emt 0:00:28]} Bc6 {[%emt 0:01:01]} 32. Rd6 {[%emt 0:00:27]} Bb7 {[%emt 0:00:27]} 33. Ng4 {[%emt 0:00:33]} Kh8 {[%emt 0:00:37]} 34. Ne3 {[%emt 0:00:24]} Kg8 {[%emt 0:00:33]} 35. Nd5 {[%emt 0:00:33]} Bxd5 {[%emt 0:00:31]} 36. Rxd5 {[%emt 0:00:02]} Ne6 {[%emt 0:00:25]} 37. Rd6 {[%emt 0:00:32]} Nc5 {[%emt 0:00:17]} (37... g5 $1 $14) 38. Rc6 {[%emt 0:00:39]} Nd3 {[%emt 0:00:38]} (38... Ne6 $16 {is a better defense.}) 39. Bxd3 {[%emt 0:00:42]} ({But not} 39. Rxa6 $6 Nxb2 40. Ke2 Rd8 $16) 39... cxd3 {[%emt 0:00:02]} 40. Ke1 {[%emt 0:00:00]} Ra8 {[%emt 0:00:55]} 41. Kd2 {[%emt 0:00:55]} Kf8 {[%emt 0:00:16]} 42. Kxd3 {[%emt 0:00:38]} Ra7 {[%emt 0:00:39]} 43. Kc3 {[%emt 0:01:19]} Ke7 {[%emt 0:01:11]} 44. Kb4 {[%emt 0:03:30]} Rd7 {[%emt 0:02:02]} 45. Rc2 {[%emt 0:09:56]} ({Don't do} 45. Rxa6 Rd2 46. b3 (46. Kxb5 Rxb2+ 47. Kc4 Rxh2 $16) 46... Rxh2 47. Ra7+ Ke6 48. f5+ Kxf5 $18) 45... Ra7 {[%emt 0:02:27]} 46. Ka5 {[%emt 0:00:31]} Kd7 $18 {[%emt 0:01:33]} 47. Kb6 {[%emt 0:00:19]} 1-0

[Event "20th Heraklion IT Open 2017"]
[Site "Heraklion"]
[Date "2017.04.17"]
[Round "1"]
[White "Stratigi, Evaggelia"]
[Black "Friedel, Marcus"]
[Result "0-1"]
[ECO "B06"]
[WhiteElo "1662"]
[BlackElo "2182"]
[Annotator "ChessBase"]
[PlyCount "66"]
[EventDate "2017.??.??"]
[EventType "swiss"]
[EventCountry "GRE"]
[SourceTitle "playchess.com"]
[Source "ChessBase"]
[SourceQuality "1"]
[TimeControl "40/5400+30:1800+30"]

1. e4 {[%emt 0:00:00]} g6 {[%emt 0:00:08]} 2. Nf3 {[%emt 0:00:04]} Bg7 {[%emt 0:00:08]} 3. d4 {[%emt 0:02:24]} d6 {[%emt 0:00:18]} 4. Bd3 {[%emt 0:03:34]} Nc6 {[%emt 0:05:00]} 5. c3 {[%emt 0:01:12]} Nf6 {[%emt 0:01:43]} 6. O-O {[%emt 0:00:29]} O-O {[%emt 0:00:56]} 7. Re1 {[%emt 0:01:50]} e5 {[%emt 0:00:48]} 8. h3 {[%emt 0:03:55]} Nd7 {[%emt 0:12:46]} 9. Bc2 {[%emt 0:09:08]} exd4 {[%emt 0:15:07]} 10. cxd4 {[%emt 0:01:43]} Nb4 {[%emt 0:00:18]} 11. Bb3 {[%emt 0:03:59]} c5 {[%emt 0:02:38]} 12. Bg5 {[%emt 0:14:05]} Qb6 {[%emt 0:09:53]} 13. e5 {[%emt 0:10:56]} cxd4 {[%emt 0:15:54]} 14. Be7 {[%emt 0:13:54]} Nxe5 {[%emt 0:02:03]} 15. Bxf8 {[%emt 0:04:55]} Kxf8 {[%emt 0:00:04]} 16. Nxe5 {[%emt 0:04:07]} dxe5 {[%emt 0:00:55]} 17. Qf3 {[%emt 0:03:23]} Qf6 {[%emt 0:04:23]} 18. Qe4 {[%emt 0:03:16]} Qf5 {[%emt 0:01:18]} 19. Qe2 {[%emt 0:03:01]} Qd3 {[%emt 0:05:39]} 20. Nd2 {[%emt 0:01:45]} Bd7 {[%emt 0:04:29]} 21. Nc4 {[%emt 0:01:38]} Bb5 {[%emt 0:02:00]} 22. Qxd3 {[%emt 0:03:13]} Nxd3 {[%emt 0:00:07]} 23. Re2 {[%emt 0:01:05]} Rd8 {[%emt 0:03:05]} 24. Rd1 {[%emt 0:01:43]} Nc5 {[%emt 0:00:10]} 25. Ree1 {[%emt 0:00:52]} e4 {[%emt 0:01:08]} 26. f3 {[%emt 0:01:31]} f5 {[%emt 0:07:07]} 27. Na3 {[%emt 0:01:34]} Ba6 {[%emt 0:00:56]} 28. Bc4 {[%emt 0:01:01]} Bxc4 {[%emt 0:02:31]} 29. Nxc4 {[%emt 0:00:04]} b5 {[%emt 0:01:27]} 30. Na3 {[%emt 0:00:14]} a6 {[%emt 0:00:25]} 31. fxe4 {[%emt 0:00:43]} Nxe4 {[%emt 0:00:25]} 32. Nb1 {[%emt 0:02:57]} d3 {[%emt 0:00:21]} 33. Re3 {[%emt 0:00:51]} Bd4 {[%emt 0:00:16]} 0-1

[Event "20th Heraklion IT Open 2017"]
[Site "Heraklion"]
[Date "2017.04.17"]
[Round "1"]
[White "Ioannidis, Efstratios Th"]
[Black "Mamoulakis, Eleftherios"]
[Result "0-1"]
[ECO "A05"]
[WhiteElo "1592"]
[BlackElo "2117"]
[Annotator "NA"]
[PlyCount "44"]
[EventDate "2017.??.??"]
[EventType "swiss"]
[EventCountry "GRE"]
[SourceTitle "playchess.com"]
[Source "ChessBase"]
[SourceQuality "1"]
[TimeControl "40/5400+30:1800+30"]

1. Nf3 {[%emt 0:00:00]} Nf6 {[%emt 0:00:08]} 2. c4 {[%emt 0:00:00]} e6 {[%emt 0:00:10]} 3. g3 {[%emt 0:00:15]} b6 {[%emt 0:00:16]} 4. Bg2 {[%emt 0:00:21]} Bb7 {[%emt 0:00:07]} 5. O-O {[%emt 0:01:00]} Be7 {[%emt 0:00:27]} 6. b3 O-O {[%emt 0:00:39]} 7. Bb2 {[%emt 0:05:39]} c5 {[%emt 0:00:25]} 8. Nc3 {[%emt 0:04:10]} d5 {[%emt 0:06:37]} 9. cxd5 {[%emt 0:03:47]} exd5 {[%emt 0:00:21]} 10. d4 {[%emt 0:01:15]} Nc6 {[%emt 0:01:18]} 11. e3 {[%emt 0:08:08]} a6 {[%emt 0:12:28]} 12. Rc1 {[%emt 0:16:55]} c4 {[%emt 0:04:13]} 13. Ne5 {[%emt 0:11:39]} b5 {[%emt 0:03:05]} 14. bxc4 {[%emt 0:07:17]} bxc4 {[%emt 0:00:13]} 15. e4 {[%emt 0:09:55]} Nxe5 {[%emt 0:12:32]} 16. dxe5 {[%emt 0:00:34]} Nxe4 {[%emt 0:00:11]} 17. Nxe4 {[%emt 0:00:44]} dxe4 {[%emt 0:00:11]} 18. Rxc4 {[%emt 0:02:11]} Qb6 {[%emt 0:04:18]} 19. Qb3 {[%emt 0:08:25]} Qxb3 {[%emt 0:02:53]} 20. axb3 {[%emt 0:00:14]} Bd5 {[%emt 0:00:27]} 21. Bxe4 {[%emt 0:08:48]} Bxc4 {[%emt 0:00:29]} 22. Bxa8 Bxf1 0-1

[Event "20th Heraklion IT Open 2017"]
[Site "Heraklion"]
[Date "2017.04.17"]
[Round "1"]
[White "Lianeris, Andreas"]
[Black "Serpetsidakis, Nikolaos"]
[Result "0-1"]
[ECO "A48"]
[WhiteElo "1543"]
[BlackElo "1994"]
[Annotator "NA"]
[PlyCount "70"]
[EventDate "2017.??.??"]
[EventType "swiss"]
[EventCountry "GRE"]
[SourceTitle "playchess.com"]
[Source "ChessBase"]
[SourceQuality "1"]
[TimeControl "40/5400+30:1800+30"]

1. d4 {[%emt 0:00:00]} Nf6 {[%emt 0:00:17]} 2. Nf3 {[%emt 0:00:11]} g6 {[%emt 0:00:31]} 3. e3 {[%emt 0:00:57]} Bg7 {[%emt 0:00:06]} 4. Bd3 {[%emt 0:01:09]} O-O {[%emt 0:00:09]} 5. b3 {[%emt 0:03:28]} d6 {[%emt 0:00:19]} 6. Bb2 {[%emt 0:00:20]} Nbd7 {[%emt 0:00:52]} 7. Nbd2 {[%emt 0:00:53]} Re8 {[%emt 0:00:40]} 8. O-O {[%emt 0:01:40]} e5 {[%emt 0:00:27]} 9. c4 {[%emt 0:03:49]} e4 {[%emt 0:01:10]} 10. Be2 {[%emt 0:12:44]} exf3 {[%emt 0:00:10]} 11. Bxf3 {[%emt 0:00:07]} Nf8 {[%emt 0:00:47]} 12. Re1 {[%emt 0:06:08]} d5 {[%emt 0:03:00]} 13. Qc2 {[%emt 0:03:48]} Bf5 {[%emt 0:00:51]} 14. Qc1 {[%emt 0:11:05]} c6 {[%emt 0:00:30]} 15. a4 {[%emt 0:03:21]} Ne4 {[%emt 0:01:19]} 16. c5 {[%emt 0:01:51]} Nxd2 {[%emt 0:00:46]} 17. Qxd2 {[%emt 0:00:26]} Qd7 {[%emt 0:00:05]} 18. Qe2 {[%emt 0:02:12]} Ne6 {[%emt 0:00:56]} 19. b4 {[%emt 0:03:11]} Nxd4 {[%emt 0:00:49]} 20. Bxd4 Bxd4 {[%emt 0:00:07]} 21. Rac1 {[%emt 0:02:51]} Bg7 {[%emt 0:00:16]} 22. Red1 {[%emt 0:01:19]} Rad8 {[%emt 0:00:46]} 23. b5 {[%emt 0:00:38]} Qc7 {[%emt 0:00:27]} 24. bxc6 {[%emt 0:00:53]} bxc6 {[%emt 0:00:08]} 25. Bg4 {[%emt 0:00:34]} Bxg4 {[%emt 0:00:18]} 26. Qxg4 Re4 {[%emt 0:00:08]} 27. Qe2 {[%emt 0:00:40]} Rxa4 {[%emt 0:00:08]} 28. Qc2 {[%emt 0:00:20]} Rc4 {[%emt 0:00:08]} 29. Qa2 {[%emt 0:00:21]} Rxc1 {[%emt 0:00:04]} 30. Rxc1 {[%emt 0:00:08]} Rb8 {[%emt 0:00:16]} 31. Qe2 {[%emt 0:01:05]} Rb5 {[%emt 0:00:18]} 32. e4 {[%emt 0:00:23]} Qe5 {[%emt 0:00:08]} 33. Qg4 {[%emt 0:00:39]} Qe6 {[%emt 0:00:12]} 34. Qh4 {[%emt 0:01:37]} Qxe4 {[%emt 0:00:14]} 35. f4 {[%emt 0:01:16]} Qe3+ {[%emt 0:00:07]} 0-1

[Event "20th Heraklion IT Open 2017"]
[Site "Heraklion"]
[Date "2017.04.17"]
[Round "1"]
[White "Kiriakakis, Ioannis"]
[Black "Maris, Ioannis"]
[Result "0-1"]
[ECO "B07"]
[WhiteElo "1534"]
[BlackElo "1967"]
[Annotator "NA"]
[PlyCount "56"]
[EventDate "2017.??.??"]
[EventType "swiss"]
[EventCountry "GRE"]
[SourceTitle "playchess.com"]
[Source "ChessBase"]
[SourceQuality "1"]
[TimeControl "40/5400+30:1800+30"]

1. e4 {[%emt 0:00:00]} d6 {[%emt 0:00:45]} 2. d4 {[%emt 0:00:00]} Nf6 {[%emt 0:00:14]} 3. Nc3 {[%emt 0:00:23]} g6 {[%emt 0:00:23]} 4. f3 {[%emt 0:01:31]} c6 {[%emt 0:01:44]} 5. Be3 {[%emt 0:01:07]} Qc7 {[%emt 0:04:26]} 6. Qd2 {[%emt 0:00:58]} b5 {[%emt 0:05:19]} 7. Nge2 {[%emt 0:13:41] B07: Pirc Defence: Miscellaneous Systems} (7. g4 h5 8. g5 Nfd7 9. d5 a6 10. dxc6 Nxc6 11. Nd5 Qb7 12. a4 b4 13. Bd4 Rg8 14. O-O-O Nxd4 15. Qxd4 {1-0 (49) Bortnyk,O (2565)-Onischuk,V (2628) Gjakova 2016}) 7... a5 {[%emt 0:13:23]} 8. Nf4 {[%emt 0:15:39]} Bg7 {[%emt 0:13:52]} 9. Nd3 $146 {[%emt 0:34:11]} (9. d5 b4 10. Na4 Nbd7 11. c4 c5 12. Nd3 Nb6 13. Nxb6 Qxb6 14. Bh6 Bxh6 15. Qxh6 {1-0 (38) Garcia,E (2033)-Aguilera,N Villa Martelli 2011}) 9... b4 {[%emt 0:06:33]} 10. Ne2 {[%emt 0:02:21]} Nbd7 {[%emt 0:01:43]} 11. a3 {[%emt 0:06:37]} Nb6 {[%emt 0:05:20]} 12. Bf2 {[%emt 0:10:24]} Nc4 {[%emt 0:03:07]} 13. Qc1 {[%emt 0:01:43]} h5 {[%emt 0:04:56]} (13... bxa3 $11 14. b3 Nb6) 14. Bg3 {[%emt 0:06:17]} e5 {[%emt 0:12:18]} 15. dxe5 {[%emt 0:01:30]} dxe5 {[%emt 0:00:07]} 16. Bh4 {[%emt 0:00:56]} Rb8 {[%emt 0:10:28]} 17. axb4 {[%emt 0:00:28]} axb4 {[%emt 0:00:13]} 18. Nc5 {[%emt 0:00:36]} Qe7 {[%emt 0:04:29]} 19. Nb3 {[%emt 0:00:29]} Be6 {[%emt 0:01:05]} 20. Ng1 {[%emt 0:00:32]} (20. Qg5 $11) 20... O-O {[%emt 0:03:35]} 21. Bxc4 {[%emt 0:00:29]} Bxc4 {[%emt 0:00:02]} 22. Qe3 {[%emt 0:00:34]} (22. Bg5 $17 {was necessary.}) 22... Ra8 {[%emt 0:01:23]} (22... Ng4 $19 23. Bxe7 Nxe3 24. Bxf8 Nxc2+ 25. Kf2 Bxf8) 23. Ne2 {[%emt 0:00:31]} Bxb3 {[%emt 0:00:20]} 24. Rxa8 {[%emt 0:00:22]} Rxa8 {[%emt 0:00:04]} 25. cxb3 {[%emt 0:00:19]} Ra1+ {[%emt 0:02:53]} 26. Nc1 $17 {[%emt 0:00:05]} Ng4 {[%emt 0:01:04]} 27. Bxe7 {[%emt 0:01:15]} Nxe3 {[%emt 0:00:02]} 28. g3 {[%emt 0:00:26]} Rxc1+ {[%emt 0:00:30]} 0-1

[Event "20th Heraklion IT Open 2017"]
[Site "Heraklion"]
[Date "2017.04.18"]
[Round "2"]
[White "Damia, Angelo"]
[Black "Moshovakis, Aggelos"]
[Result "1/2-1/2"]
[ECO "A20"]
[WhiteElo "2417"]
[BlackElo "2030"]
[Annotator "RC"]
[PlyCount "68"]
[EventDate "2017.??.??"]
[EventType "swiss"]
[EventCountry "GRE"]
[SourceTitle "playchess.com"]
[Source "ChessBase"]
[SourceQuality "1"]
[TimeControl "40/5400+30:1800+30"]

1. c4 {[%emt 0:00:00]} e5 {[%emt 0:00:19]} 2. a3 {[%emt 0:01:01]} Nf6 {[%emt 0:04:26]} 3. e3 {[%emt 0:00:05]} Nc6 {[%emt 0:02:42]} 4. Nc3 {[%emt 0:05:29]} g6 {[%emt 0:02:31]} 5. Nf3 {[%emt 0:04:32]} Bg7 {[%emt 0:01:16]} 6. d4 {[%emt 0:02:17]} exd4 {[%emt 0:11:30]} 7. exd4 {[%emt 0:01:54]} d5 {[%emt 0:01:59]} 8. c5 {[%emt 0:00:14]} O-O {[%emt 0:00:39]} 9. h3 {[%emt 0:01:18]} Ne4 {[%emt 0:03:24]} 10. Be2 {[%emt 0:04:51]} Be6 {[%emt 0:08:17]} 11. Be3 {[%emt 0:03:43]} f5 {[%emt 0:07:02]} 12. Qb3 {[%emt 0:10:52]} Qd7 {[%emt 0:07:39]} 13. g3 {[%emt 0:08:48]} Kh8 {[%emt 0:09:43]} 14. O-O-O {[%emt 0:05:45]} Na5 {[%emt 0:01:08]} 15. Qb4 {[%emt 0:04:06]} b6 {[%emt 0:01:30]} 16. Ne5 {[%emt 0:11:21]} Bxe5 {[%emt 0:02:59]} 17. dxe5 {[%emt 0:00:01]} Nc6 {[%emt 0:00:08]} 18. Qa4 {[%emt 0:01:04]} Nxc3 {[%emt 0:01:12]} 19. bxc3 {[%emt 0:00:04]} Nxe5 {[%emt 0:01:30]} 20. Qd4 {[%emt 0:17:33]} Qg7 {[%emt 0:00:07]} 21. Qd2 {[%emt 0:04:19]} Kg8 {[%emt 0:01:42]} 22. Bh6 {[%emt 0:01:27]} Qe7 {[%emt 0:00:40]} 23. Qe3 {[%emt 0:01:17]} Nd7 {[%emt 0:02:00]} 24. Bxf8 {[%emt 0:00:33]} Kxf8 {[%emt 0:00:40]} 25. Bf3 {[%emt 0:01:15]} c6 {[%emt 0:03:17]} 26. c4 {[%emt 0:01:01]} Rc8 {[%emt 0:03:13]} 27. cxb6 {[%emt 0:02:23]} Nxb6 {[%emt 0:00:23]} 28. Be2 {[%emt 0:04:18]} dxc4 {[%emt 0:01:05]} 29. Rhe1 {[%emt 0:02:01]} Nd5 {[%emt 0:00:37]} 30. Qd4 {[%emt 0:00:40]} Qxa3+ {[%emt 0:00:17]} 31. Qb2 {[%emt 0:00:12]} Qc5 {[%emt 0:00:58]} 32. Qd4 {[%emt 0:00:37]} Qa3+ {[%emt 0:00:07]} 33. Qb2 {[%emt 0:00:03]} Qc5 {[%emt 0:00:02]} 34. Qd4 {[%emt 0:00:57]} Qa3+ {[%emt 0:04:26]} 1/2-1/2

[Event "20th Heraklion IT Open 2017"]
[Site "Heraklion"]
[Date "2017.04.18"]
[Round "2"]
[White "Pelantakis, Mihail"]
[Black "Fragiadakis, Emanouel"]
[Result "0-1"]
[ECO "E15"]
[WhiteElo "1737"]
[BlackElo "1827"]
[Annotator "NA"]
[PlyCount "96"]
[EventDate "2017.??.??"]
[EventType "swiss"]
[EventCountry "GRE"]
[SourceTitle "playchess.com"]
[Source "ChessBase"]
[SourceQuality "1"]
[TimeControl "40/5400+30:1800+30"]

1. d4 {[%emt 0:00:00]} Nf6 {[%emt 0:00:51]} 2. c4 {[%emt 0:00:00]} e6 {[%emt 0:00:03]} 3. Nf3 {[%emt 0:00:00]} b6 {[%emt 0:00:41]} 4. g3 {[%emt 0:00:09]} Ba6 {[%emt 0:00:14]} 5. b3 {[%emt 0:00:13]} Bb4+ {[%emt 0:00:09]} 6. Bd2 {[%emt 0:00:14]} Be7 {[%emt 0:00:05]} 7. Bg2 {[%emt 0:00:07]} c6 {[%emt 0:02:17]} 8. Bc3 {[%emt 0:00:18]} d5 {[%emt 0:00:21]} 9. Ne5 {[%emt 0:00:16]} Nfd7 {[%emt 0:00:15]} 10. Nxd7 {[%emt 0:00:09]} Nxd7 {[%emt 0:00:37]} 11. Nd2 {[%emt 0:00:18]} f5 {[%emt 0:11:02]} 12. O-O {[%emt 0:22:34]} O-O {[%emt 0:03:47]} 13. cxd5 {[%emt 0:15:22] E15: Queen's Indian: 4 g3 sidelines, 4 g3 Ba6 and 4 g3 Bb7 early deviations} (13. Bb2 Bd6 14. Rc1 Qe7 15. Nf3 Rac8 16. Rc2 Nf6 17. Ne5 Ne4 18. Qc1 Bb7 19. Nd3 Rfd8 20. c5 Bb8 {½-½ (29) Beliavsky,A (2605)-Kovalenko,I (2684) Puhajarve 2016}) 13... cxd5 {[%emt 0:01:32]} 14. Bb2 {[%emt 0:05:39]} Rc8 {[%emt 0:02:12]} 15. Re1 $146 {[%emt 0:04:24]} (15. Nf3 Bd6 16. Qd2 Nf6 17. Ne5 Ne4 18. Bxe4 dxe4 19. Rfd1 f4 20. e3 f3 {0-1 (43) Erkhembayar,D (2343)-Batchuluun,T (2391) Ulaanbaatar 2009}) 15... Bb4 {[%emt 0:05:40]} 16. a3 {[%emt 0:21:09]} Bc3 {[%emt 0:03:45]} 17. Bxc3 {[%emt 0:00:19]} Rxc3 {[%emt 0:00:05]} 18. Rc1 {[%emt 0:00:38]} Qc7 {[%emt 0:00:44]} 19. Nb1 {[%emt 0:04:42]} Rc6 {[%emt 0:07:27]} 20. Qd2 {[%emt 0:02:56]} Rc8 {[%emt 0:00:42]} 21. Rxc6 {[%emt 0:00:13]} Qxc6 {[%emt 0:00:05]} 22. Qe3 {[%emt 0:03:13]} Kf7 {[%emt 0:05:04]} 23. Bf3 {[%emt 0:10:13]} Qc2 {[%emt 0:05:23]} 24. Bh5+ {[%emt 0:02:04]} g6 {[%emt 0:02:15]} 25. Bf3 {[%emt 0:00:06]} Qb2 {[%emt 0:20:31]} 26. g4 {[%emt 0:02:12]} Nf6 {[%emt 0:00:58]} 27. gxf5 {[%emt 0:02:11]} exf5 {[%emt 0:07:10]} 28. Kf1 {[%emt 0:03:42]} h5 {[%emt 0:02:43]} 29. h4 {[%emt 0:00:36]} Qc2 {[%emt 0:02:51]} 30. a4 {[%emt 0:00:28]} Qc7 {[%emt 0:01:01]} 31. Qe5 {[%emt 0:00:32]} Qxe5 {[%emt 0:00:43]} 32. dxe5 {[%emt 0:00:16]} Ne4 {[%emt 0:00:01]} 33. Bxe4 {[%emt 0:00:45]} fxe4 {[%emt 0:00:15]} 34. Rd1 {[%emt 0:00:31]} Ke6 {[%emt 0:00:18]} 35. b4 {[%emt 0:00:28]} Bc4 {[%emt 0:00:47]} 36. Na3 {[%emt 0:00:31]} Kxe5 {[%emt 0:00:10]} 37. a5 {[%emt 0:00:29]} Bb3 {[%emt 0:02:11]} 38. Rb1 {[%emt 0:00:17]} Ba4 {[%emt 0:00:09]} 39. axb6 {[%emt 0:00:34]} axb6 {[%emt 0:00:05]} 40. Rb2 {[%emt 0:00:00]} Rc3 {[%emt 0:00:51]} 41. Nb1 {[%emt 0:00:49]} Rh3 {[%emt 0:02:41]} 42. Kg2 {[%emt 0:00:23]} Rxh4 {[%emt 0:04:05]} 43. Ra2 {[%emt 0:00:22]} Rg4+ {[%emt 0:05:07]} 44. Kh3 $19 {[%emt 0:01:20]} Bd7 {[%emt 0:01:04]} 45. Kh2 {[%emt 0:01:36]} Rh4+ {[%emt 0:01:05]} 46. Kg2 {[%emt 0:00:20]} Rg4+ {[%emt 0:05:11]} 47. Kh2 {[%emt 0:00:04]} Rf4 {[%emt 0:00:17]} 48. Kg2 {[%emt 0:00:27]} e3 {[%emt 0:01:40]} 0-1